[Event "*** SCC Grand Prix: Titled Tuesday Blitz"]
[Site "Chess.com"]
[Date "2020.09.29"]
[Round "5"]
[White "r31415"]
[Black "BJthechessgod"]
[Result "1-0"]
[WhiteElo "2463"]
[BlackElo "2304"]
[TimeControl "180+1"]
[EndTime "10:53:42 PDT"]
[Termination "r31415 won by checkmate"]

1. c4 {[%clk 0:02:13]} 1... Nf6 {[%clk 0:02:55.3]} 2. Nc3 {[%clk 0:02:12.7]}
2... e6 {[%clk 0:02:56.2]} 3. e4 {[%clk 0:02:10.2]} 3... b6 {[%clk 0:02:54.7]}
4. e5 {[%clk 0:02:09.3]} 4... Ng8 {[%clk 0:02:53.8]} 5. d4 {[%clk 0:02:06]} 5...
Bb7 {[%clk 0:02:45.2]} 6. f4 {[%clk 0:02:05.4]} 6... Bb4 {[%clk 0:02:40.1]} 7.
Qg4 {[%clk 0:01:57]} 7... Bxc3+ {[%clk 0:02:33.5]} 8. bxc3 {[%clk 0:01:56.7]}
8... Kf8 {[%clk 0:02:34.4]} 9. Nf3 {[%clk 0:01:50.3]} 9... Nh6 {[%clk
0:02:27.4]} 10. Qh3 {[%clk 0:01:46]} 10... d6 {[%clk 0:02:19.5]} 11. Bd3 {[%clk
0:01:45.2]} 11... Nd7 {[%clk 0:02:12.1]} 12. O-O {[%clk 0:01:36.9]} 12... c5
{[%clk 0:01:51.4]} 13. f5 {[%clk 0:01:36.7]} 13... Nxf5 {[%clk 0:01:42.7]} 14.
Bxf5 {[%clk 0:01:36.7]} 14... exf5 {[%clk 0:01:30.8]} 15. Qxf5 {[%clk
0:01:36.8]} 15... dxe5 {[%clk 0:01:22.3]} 16. dxe5 {[%clk 0:01:29.1]} 16... Bxf3
{[%clk 0:01:06.8]} 17. Rxf3 {[%clk 0:01:25]} 17... Qe8 {[%clk 0:01:01.4]} 18.
Re3 {[%clk 0:01:06.6]} 18... Qe6 {[%clk 0:00:58.3]} 19. Qe4 {[%clk 0:00:55.8]}
19... Re8 {[%clk 0:00:54.2]} 20. Qb7 {[%clk 0:00:46.3]} 20... Nxe5 {[%clk
0:00:48]} 21. Qxa7 {[%clk 0:00:46.1]} 21... Qxc4 {[%clk 0:00:46.8]} 22. Qxb6
{[%clk 0:00:41.7]} 22... Rd8 {[%clk 0:00:29.3]} 23. Qxd8# {[%clk 0:00:36.3]} 1-0

[Event "*** SCC Grand Prix: Titled Tuesday Blitz"]
[Site "Chess.com"]
[Date "2020.09.29"]
[Round "5"]
[White "Kaslask"]
[Black "TimKett"]
[Result "1-0"]
[WhiteElo "2354"]
[BlackElo "2159"]
[TimeControl "180+1"]
[EndTime "10:53:44 PDT"]
[Termination "Kaslask won on time"]

1. d4 {[%clk 0:03:00.9]} 1... d5 {[%clk 0:02:57.4]} 2. c4 {[%clk 0:03:00.3]}
2... e6 {[%clk 0:02:57.6]} 3. Nc3 {[%clk 0:02:59.3]} 3... c5 {[%clk 0:02:57.5]}
4. cxd5 {[%clk 0:02:55.9]} 4... exd5 {[%clk 0:02:58]} 5. dxc5 {[%clk 0:02:54.7]}
5... d4 {[%clk 0:02:56.3]} 6. Na4 {[%clk 0:02:54.1]} 6... Bxc5 {[%clk
0:02:55.7]} 7. Nxc5 {[%clk 0:02:53.2]} 7... Qa5+ {[%clk 0:02:56.1]} 8. Bd2
{[%clk 0:02:51.3]} 8... Qxc5 {[%clk 0:02:51.5]} 9. Nf3 {[%clk 0:02:48.4]} 9...
Nc6 {[%clk 0:02:50.3]} 10. e3 {[%clk 0:02:43.7]} 10... Nf6 {[%clk 0:02:43]} 11.
Rc1 {[%clk 0:02:29.5]} 11... Qb6 {[%clk 0:02:39.6]} 12. exd4 {[%clk 0:02:24.8]}
12... Nxd4 {[%clk 0:02:30.3]} 13. Qa4+ {[%clk 0:02:17.6]} 13... Nc6 {[%clk
0:02:29.4]} 14. Bb5 {[%clk 0:02:07]} 14... O-O {[%clk 0:02:24.7]} 15. O-O {[%clk
0:02:06.4]} 15... Bd7 {[%clk 0:02:05.1]} 16. Be3 {[%clk 0:02:04.5]} 16... Qc7
{[%clk 0:02:02.9]} 17. Rfd1 {[%clk 0:01:59.6]} 17... a6 {[%clk 0:01:51.3]} 18.
Be2 {[%clk 0:01:56]} 18... Rac8 {[%clk 0:01:47.4]} 19. Qh4 {[%clk 0:01:50.4]}
19... Rfe8 {[%clk 0:01:22.2]} 20. Bd3 {[%clk 0:01:47.8]} 20... Bg4 {[%clk
0:00:24.6]} 21. Bxh7+ {[%clk 0:01:35.2]} 21... Nxh7 {[%clk 0:00:20.6]} 22. Qxg4
{[%clk 0:01:34.1]} 22... Nf6 {[%clk 0:00:18.9]} 23. Qh4 {[%clk 0:01:33.6]} 23...
Re4 {[%clk 0:00:16.3]} 24. Qg5 {[%clk 0:01:22]} 24... Rg4 {[%clk 0:00:13.6]} 25.
Qf5 {[%clk 0:01:15.8]} 25... Re8 {[%clk 0:00:05.9]} 26. g3 {[%clk 0:01:13.4]}
1-0

[Event "*** SCC Grand Prix: Titled Tuesday Blitz"]
[Site "Chess.com"]
[Date "2020.09.29"]
[Round "5"]
[White "RobPeresian"]
[Black "pavelalexandru07"]
[Result "1-0"]
[WhiteElo "2416"]
[BlackElo "2240"]
[TimeControl "180+1"]
[EndTime "10:53:45 PDT"]
[Termination "RobPeresian won by resignation"]

1. Nf3 {[%clk 0:03:00.9]} 1... c5 {[%clk 0:02:58.9]} 2. c4 {[%clk 0:03:00.3]}
2... Nf6 {[%clk 0:02:58.3]} 3. Nc3 {[%clk 0:02:55.7]} 3... a6 {[%clk 0:02:57.6]}
4. g3 {[%clk 0:02:51.8]} 4... d5 {[%clk 0:02:57.1]} 5. cxd5 {[%clk 0:02:50.6]}
5... Nxd5 {[%clk 0:02:58]} 6. Nxd5 {[%clk 0:02:46.3]} 6... Qxd5 {[%clk
0:02:57.7]} 7. d3 {[%clk 0:02:46.4]} 7... Nc6 {[%clk 0:02:57.6]} 8. Bg2 {[%clk
0:02:46.3]} 8... e5 {[%clk 0:02:55]} 9. O-O {[%clk 0:02:45.2]} 9... Qd8 {[%clk
0:02:52.4]} 10. Be3 {[%clk 0:02:42.5]} 10... Bd6 {[%clk 0:02:48]} 11. Rc1 {[%clk
0:02:41.8]} 11... Nd4 {[%clk 0:02:48]} 12. Nd2 {[%clk 0:02:37.1]} 12... O-O
{[%clk 0:02:43.6]} 13. a3 {[%clk 0:02:19.4]} 13... Bg4 {[%clk 0:02:34]} 14. f3
{[%clk 0:02:05.3]} 14... Be6 {[%clk 0:02:33.2]} 15. Ne4 {[%clk 0:01:57.1]} 15...
h6 {[%clk 0:02:28.3]} 16. f4 {[%clk 0:01:53.8]} 16... exf4 {[%clk 0:02:06.4]}
17. Bxf4 {[%clk 0:01:30.6]} 17... Bxf4 {[%clk 0:02:03.8]} 18. Rxf4 {[%clk
0:01:31.5]} 18... b6 {[%clk 0:01:53]} 19. e3 {[%clk 0:01:05.7]} 19... Nf5 {[%clk
0:01:26.3]} 20. Qe2 {[%clk 0:01:04.9]} 20... Qd7 {[%clk 0:01:24.1]} 21. Rcf1
{[%clk 0:00:56.1]} 21... Rad8 {[%clk 0:01:22.8]} 22. Bh3 {[%clk 0:00:48.1]}
22... Nd4 {[%clk 0:01:13.5]} 23. exd4 {[%clk 0:00:44.2]} 23... Bxh3 {[%clk
0:01:12.7]} 24. R1f2 {[%clk 0:00:33.8]} 24... Qxd4 {[%clk 0:01:11.9]} 25. Nf6+
{[%clk 0:00:29]} 25... gxf6 {[%clk 0:01:07.1]} 26. Rxd4 {[%clk 0:00:28.7]} 26...
Rxd4 {[%clk 0:01:08]} 27. Qh5 {[%clk 0:00:22.6]} 27... Re8 {[%clk 0:01:01.5]}
28. Qxh3 {[%clk 0:00:20.5]} 1-0

[Event "*** SCC Grand Prix: Titled Tuesday Blitz"]
[Site "Chess.com"]
[Date "2020.09.29"]
[Round "5"]
[White "ORS1984"]
[Black "A-Fier"]
[Result "0-1"]
[WhiteElo "2530"]
[BlackElo "2844"]
[TimeControl "180+1"]
[EndTime "10:53:46 PDT"]
[Termination "A-Fier won by resignation"]

1. e4 {[%clk 0:02:07.8]} 1... Nf6 {[%clk 0:02:58.2]} 2. e5 {[%clk 0:02:06.3]}
2... Nd5 {[%clk 0:02:58.2]} 3. d4 {[%clk 0:02:06.5]} 3... d6 {[%clk 0:02:58.1]}
4. Bc4 {[%clk 0:02:06.2]} 4... Nb6 {[%clk 0:02:57.8]} 5. Bb3 {[%clk 0:02:05.8]}
5... g6 {[%clk 0:02:52.5]} 6. Qe2 {[%clk 0:02:02.7]} 6... Bg7 {[%clk 0:02:51.7]}
7. Nf3 {[%clk 0:02:02.6]} 7... O-O {[%clk 0:02:51.3]} 8. O-O {[%clk 0:02:02.5]}
8... Nc6 {[%clk 0:02:48.4]} 9. exd6 {[%clk 0:01:54.9]} 9... cxd6 {[%clk
0:02:47.2]} 10. c3 {[%clk 0:01:53.3]} 10... e5 {[%clk 0:02:39.1]} 11. dxe5
{[%clk 0:01:46]} 11... dxe5 {[%clk 0:02:40]} 12. Nbd2 {[%clk 0:01:43.6]} 12...
Bf5 {[%clk 0:02:36.4]} 13. Ne4 {[%clk 0:01:40]} 13... h6 {[%clk 0:02:23.6]} 14.
Rd1 {[%clk 0:01:37.2]} 14... Qe7 {[%clk 0:02:22.8]} 15. Ng3 {[%clk 0:01:24]}
15... Bd7 {[%clk 0:02:12]} 16. Be3 {[%clk 0:01:20.5]} 16... Na5 {[%clk
0:01:57.2]} 17. Qd2 {[%clk 0:01:09]} 17... Kh7 {[%clk 0:01:39.1]} 18. Bxb6
{[%clk 0:01:06.9]} 18... axb6 {[%clk 0:01:32.2]} 19. Qxd7 {[%clk 0:01:05.8]}
19... Qxd7 {[%clk 0:01:32.6]} 20. Rxd7 {[%clk 0:01:03.5]} 20... Nxb3 {[%clk
0:01:33.1]} 21. Re1 {[%clk 0:00:55.8]} 21... Nc5 {[%clk 0:01:32.3]} 22. Re7
{[%clk 0:00:47.6]} 22... Rxa2 {[%clk 0:01:31.4]} 23. Nxe5 {[%clk 0:00:39.3]}
23... Bxe5 {[%clk 0:01:27.2]} 24. R7xe5 {[%clk 0:00:38.3]} 24... Rxb2 {[%clk
0:01:27.3]} 25. Ne4 {[%clk 0:00:30.9]} 25... Nd3 {[%clk 0:01:26.2]} 26. Nf6+
{[%clk 0:00:25.6]} 26... Kg7 {[%clk 0:01:26]} 27. Ne8+ {[%clk 0:00:23.9]} 27...
Kh8 {[%clk 0:01:23.1]} 28. Re7 {[%clk 0:00:12.3]} 28... Nxe1 {[%clk 0:01:22.4]}
0-1

[Event "*** SCC Grand Prix: Titled Tuesday Blitz"]
[Site "Chess.com"]
[Date "2020.09.29"]
[Round "5"]
[White "frederiksvane"]
[Black "Kotofeyca"]
[Result "1-0"]
[WhiteElo "2673"]
[BlackElo "2342"]
[TimeControl "180+1"]
[EndTime "10:53:46 PDT"]
[Termination "frederiksvane won by checkmate"]

1. e4 {[%clk 0:03:00.9]} 1... c5 {[%clk 0:02:59.7]} 2. Nf3 {[%clk 0:03:00.9]}
2... d6 {[%clk 0:03:00.3]} 3. Bb5+ {[%clk 0:03:00.3]} 3... Bd7 {[%clk
0:02:59.8]} 4. c4 {[%clk 0:02:56.1]} 4... Nf6 {[%clk 0:02:58.8]} 5. Nc3 {[%clk
0:02:56.2]} 5... Bxb5 {[%clk 0:02:57.8]} 6. cxb5 {[%clk 0:02:56.3]} 6... a6
{[%clk 0:02:58.1]} 7. bxa6 {[%clk 0:02:50.2]} 7... Rxa6 {[%clk 0:02:54.9]} 8.
O-O {[%clk 0:02:51.1]} 8... Nc6 {[%clk 0:02:54.5]} 9. d4 {[%clk 0:02:51.3]} 9...
cxd4 {[%clk 0:02:45.8]} 10. Nxd4 {[%clk 0:02:52.2]} 10... g6 {[%clk 0:02:43.7]}
11. Nxc6 {[%clk 0:02:45.4]} 11... bxc6 {[%clk 0:02:37.4]} 12. Qe2 {[%clk
0:02:42.4]} 12... Ra5 {[%clk 0:02:23.5]} 13. b4 {[%clk 0:02:41.6]} 13... Ra8
{[%clk 0:02:12.2]} 14. e5 {[%clk 0:02:37.7]} 14... dxe5 {[%clk 0:02:11.6]} 15.
Qxe5 {[%clk 0:02:38.6]} 15... Bg7 {[%clk 0:02:09.7]} 16. Bb2 {[%clk 0:02:34.2]}
16... O-O {[%clk 0:02:07.2]} 17. Rfd1 {[%clk 0:02:30.8]} 17... Nd5 {[%clk
0:01:58.5]} 18. Qg3 {[%clk 0:02:15]} 18... e6 {[%clk 0:01:52.3]} 19. Nxd5 {[%clk
0:02:07.2]} 19... Bxb2 {[%clk 0:01:37.9]} 20. Rab1 {[%clk 0:02:06.9]} 20... cxd5
{[%clk 0:00:56.4]} 21. Rxb2 {[%clk 0:02:06.8]} 21... Qf6 {[%clk 0:00:50.6]} 22.
Qb3 {[%clk 0:02:06.2]} 22... d4 {[%clk 0:00:43.9]} 23. b5 {[%clk 0:02:03.6]}
23... e5 {[%clk 0:00:44.1]} 24. a4 {[%clk 0:02:01]} 24... e4 {[%clk 0:00:43.4]}
25. Qb4 {[%clk 0:01:59.3]} 25... d3 {[%clk 0:00:41.8]} 26. Rb3 {[%clk
0:01:53.5]} 26... Qe5 {[%clk 0:00:22.2]} 27. b6 {[%clk 0:01:43.9]} 27... Rfb8
{[%clk 0:00:21.8]} 28. Re1 {[%clk 0:01:33.2]} 28... f5 {[%clk 0:00:20.1]} 29.
Rc1 {[%clk 0:01:20.4]} 29... Ra6 {[%clk 0:00:16.9]} 30. b7 {[%clk 0:01:16.4]}
30... Ra7 {[%clk 0:00:14.4]} 31. Rc8+ {[%clk 0:01:16]} 31... Kg7 {[%clk
0:00:12.9]} 32. Qf8# {[%clk 0:01:15.7]} 1-0

[Event "*** SCC Grand Prix: Titled Tuesday Blitz"]
[Site "Chess.com"]
[Date "2020.09.29"]
[Round "5"]
[White "TokChess"]
[Black "HanSchut"]
[Result "1-0"]
[WhiteElo "2406"]
[BlackElo "2226"]
[TimeControl "180+1"]
[EndTime "10:53:47 PDT"]
[Termination "TokChess won by resignation"]

1. Nf3 {[%clk 0:02:42]} 1... Nf6 {[%clk 0:02:58.4]} 2. g3 {[%clk 0:02:41.6]}
2... c5 {[%clk 0:02:58.7]} 3. Bg2 {[%clk 0:02:41.9]} 3... Nc6 {[%clk 0:02:59.2]}
4. O-O {[%clk 0:02:42.6]} 4... d5 {[%clk 0:02:59.4]} 5. c4 {[%clk 0:02:43.3]}
5... g6 {[%clk 0:02:58.9]} 6. cxd5 {[%clk 0:02:43.3]} 6... Nxd5 {[%clk
0:02:59.8]} 7. Nc3 {[%clk 0:02:43.9]} 7... Nc7 {[%clk 0:02:50.7]} 8. d3 {[%clk
0:02:42.6]} 8... Bg7 {[%clk 0:02:50.3]} 9. Nd2 {[%clk 0:02:41.4]} 9... Bd7
{[%clk 0:02:48.7]} 10. a4 {[%clk 0:02:41.6]} 10... b6 {[%clk 0:02:47.7]} 11. Nc4
{[%clk 0:02:41.9]} 11... Rc8 {[%clk 0:02:42.8]} 12. Bf4 {[%clk 0:02:40.6]} 12...
O-O {[%clk 0:02:19.8]} 13. a5 {[%clk 0:02:38.1]} 13... e5 {[%clk 0:02:08.7]} 14.
axb6 {[%clk 0:02:36.3]} 14... axb6 {[%clk 0:01:40.7]} 15. Bxc6 {[%clk
0:02:23.1]} 15... Bxc6 {[%clk 0:01:34.2]} 16. Bxe5 {[%clk 0:02:23]} 16... Nd5
{[%clk 0:01:12.6]} 17. Bxg7 {[%clk 0:02:19.8]} 17... Kxg7 {[%clk 0:01:13.5]} 18.
Ne5 {[%clk 0:02:12.1]} 18... Ba8 {[%clk 0:00:57.2]} 19. Qd2 {[%clk 0:02:07.7]}
19... f6 {[%clk 0:00:47.9]} 20. Nc4 {[%clk 0:02:04.9]} 20... b5 {[%clk
0:00:47.7]} 21. Ne3 {[%clk 0:02:01.6]} 21... Nxc3 {[%clk 0:00:38.9]} 22. Qxc3
{[%clk 0:01:56.2]} 22... Qd7 {[%clk 0:00:35.6]} 23. f3 {[%clk 0:01:40.1]} 23...
Rfe8 {[%clk 0:00:35.7]} 24. Kf2 {[%clk 0:01:39.6]} 24... Qe7 {[%clk 0:00:27.1]}
25. Qd2 {[%clk 0:01:39.5]} 25... c4 {[%clk 0:00:23.8]} 26. dxc4 {[%clk
0:01:33.9]} 26... Rcd8 {[%clk 0:00:23.9]} 27. Qc3 {[%clk 0:01:33.8]} 27... b4
{[%clk 0:00:24.2]} 28. Qb3 {[%clk 0:01:31.1]} 28... Rd2 {[%clk 0:00:20.3]} 29.
Rfd1 {[%clk 0:01:24.8]} 29... Rc2 {[%clk 0:00:19.9]} 30. Rxa8 {[%clk 0:01:13.7]}
30... Rc3 {[%clk 0:00:15.2]} 31. Rxe8 {[%clk 0:01:11.6]} 1-0

[Event "*** SCC Grand Prix: Titled Tuesday Blitz"]
[Site "Chess.com"]
[Date "2020.09.29"]
[Round "5"]
[White "Akmal_Fayzullaev"]
[Black "vovachesss"]
[Result "1-0"]
[WhiteElo "2304"]
[BlackElo "2672"]
[TimeControl "180+1"]
[EndTime "10:53:52 PDT"]
[Termination "Akmal_Fayzullaev won by resignation"]

1. e4 {[%clk 0:03:00.9]} 1... Nf6 {[%clk 0:02:55.2]} 2. e5 {[%clk 0:02:59.8]}
2... Nd5 {[%clk 0:02:55.8]} 3. Nc3 {[%clk 0:02:58]} 3... Nxc3 {[%clk 0:02:55.7]}
4. dxc3 {[%clk 0:02:58.9]} 4... d5 {[%clk 0:02:56.6]} 5. Nf3 {[%clk 0:02:58.5]}
5... Bg4 {[%clk 0:02:56.3]} 6. h3 {[%clk 0:02:55.8]} 6... Bxf3 {[%clk
0:02:55.7]} 7. Qxf3 {[%clk 0:02:56.7]} 7... e6 {[%clk 0:02:55.5]} 8. Bd3 {[%clk
0:02:55]} 8... Nd7 {[%clk 0:02:54.8]} 9. Qg3 {[%clk 0:02:54.1]} 9... g6 {[%clk
0:02:51.2]} 10. Bg5 {[%clk 0:02:46]} 10... Be7 {[%clk 0:02:49.3]} 11. Bh6 {[%clk
0:02:44.9]} 11... c6 {[%clk 0:02:45]} 12. O-O {[%clk 0:02:28.6]} 12... Bf8
{[%clk 0:02:38.9]} 13. Bg5 {[%clk 0:02:26.5]} 13... Qc7 {[%clk 0:02:38]} 14.
Rfe1 {[%clk 0:02:23.7]} 14... Bg7 {[%clk 0:02:36.2]} 15. Bf4 {[%clk 0:02:20.2]}
15... O-O {[%clk 0:02:30.9]} 16. h4 {[%clk 0:02:14.8]} 16... Nc5 {[%clk
0:02:26.7]} 17. h5 {[%clk 0:02:13]} 17... Nxd3 {[%clk 0:02:25.7]} 18. cxd3
{[%clk 0:02:13.9]} 18... c5 {[%clk 0:02:22.9]} 19. Qg4 {[%clk 0:02:04]} 19...
Rae8 {[%clk 0:02:14.1]} 20. g3 {[%clk 0:01:47]} 20... c4 {[%clk 0:02:08.7]} 21.
d4 {[%clk 0:01:45.2]} 21... Qb6 {[%clk 0:02:03.5]} 22. Re2 {[%clk 0:01:40.3]}
22... f5 {[%clk 0:01:59.4]} 23. exf6 {[%clk 0:01:39.8]} 23... Rxf6 {[%clk
0:02:00]} 24. Be5 {[%clk 0:01:37.7]} 24... Rf5 {[%clk 0:01:45.9]} 25. hxg6
{[%clk 0:01:22.7]} 25... h5 {[%clk 0:01:37.2]} 26. Qh4 {[%clk 0:01:22.7]} 26...
Qc6 {[%clk 0:01:26.4]} 27. Rae1 {[%clk 0:01:18.4]} 27... Qd7 {[%clk 0:01:26]}
28. Bxg7 {[%clk 0:01:03.7]} 28... Kxg7 {[%clk 0:01:25.4]} 29. Re5 {[%clk
0:01:04.1]} 29... Kxg6 {[%clk 0:01:13.5]} 30. g4 {[%clk 0:00:54.4]} 30... Rxe5
{[%clk 0:01:09.3]} 31. Rxe5 {[%clk 0:00:50.7]} 31... Qh7 {[%clk 0:00:50.4]} 32.
Rxh5 {[%clk 0:00:47.4]} 32... Qe7 {[%clk 0:00:48.5]} 33. Rh6+ {[%clk 0:00:47.5]}
33... Kg7 {[%clk 0:00:47]} 34. Rh7+ {[%clk 0:00:47.6]} 1-0

[Event "*** SCC Grand Prix: Titled Tuesday Blitz"]
[Site "Chess.com"]
[Date "2020.09.29"]
[Round "5"]
[White "Quiet_Desperation"]
[Black "Gulkov_Igor"]
[Result "0-1"]
[WhiteElo "2026"]
[BlackElo "2441"]
[TimeControl "180+1"]
[EndTime "10:53:55 PDT"]
[Termination "Gulkov_Igor won by resignation"]

1. e4 {[%clk 0:03:00.9]} 1... c5 {[%clk 0:02:59.5]} 2. Nf3 {[%clk 0:03:00.9]}
2... d6 {[%clk 0:02:59.5]} 3. d4 {[%clk 0:03:01.2]} 3... cxd4 {[%clk 0:02:59.5]}
4. Nxd4 {[%clk 0:03:02.1]} 4... Nf6 {[%clk 0:02:59.7]} 5. Nc3 {[%clk 0:03:02]}
5... a6 {[%clk 0:03:00]} 6. h3 {[%clk 0:03:02.3]} 6... e5 {[%clk 0:02:59.5]} 7.
Nde2 {[%clk 0:03:02.4]} 7... Be7 {[%clk 0:02:59.1]} 8. g3 {[%clk 0:03:02.8]}
8... O-O {[%clk 0:02:59]} 9. Bg2 {[%clk 0:03:03.1]} 9... b5 {[%clk 0:02:59.2]}
10. a3 {[%clk 0:02:44]} 10... Bb7 {[%clk 0:02:59.1]} 11. O-O {[%clk 0:02:43]}
11... Nbd7 {[%clk 0:02:59]} 12. Be3 {[%clk 0:02:38.6]} 12... Nc5 {[%clk
0:02:56.5]} 13. Bxc5 {[%clk 0:02:34.3]} 13... dxc5 {[%clk 0:02:56.1]} 14. Nd5
{[%clk 0:02:34.8]} 14... Nxd5 {[%clk 0:01:56.2]} 15. exd5 {[%clk 0:02:33.1]}
15... Bd6 {[%clk 0:01:44.8]} 16. c4 {[%clk 0:02:31.7]} 16... f5 {[%clk
0:01:43.4]} 17. Qb3 {[%clk 0:02:23.8]} 17... Qd7 {[%clk 0:01:14.2]} 18. Qc2
{[%clk 0:02:21.2]} 18... Rae8 {[%clk 0:01:07]} 19. Rab1 {[%clk 0:02:16.3]} 19...
e4 {[%clk 0:01:05.2]} 20. b4 {[%clk 0:02:13.7]} 20... bxc4 {[%clk 0:00:58.2]}
21. Qxc4 {[%clk 0:02:06.5]} 21... cxb4 {[%clk 0:00:56.7]} 22. axb4 {[%clk
0:02:00.9]} 22... Rc8 {[%clk 0:00:52.6]} 23. Qb3 {[%clk 0:01:58.3]} 23... Be5
{[%clk 0:00:50.1]} 24. Rfd1 {[%clk 0:01:48.2]} 24... Qd6 {[%clk 0:00:49.9]} 25.
b5 {[%clk 0:01:39.6]} 25... axb5 {[%clk 0:00:48.7]} 26. Qxb5 {[%clk 0:01:38.1]}
26... Ba6 {[%clk 0:00:48.8]} 27. Nd4 {[%clk 0:01:15.8]} 27... Bxb5 {[%clk
0:00:47.8]} 28. Rxb5 {[%clk 0:01:15.7]} 28... Bxd4 {[%clk 0:00:46.6]} 29. Rxd4
{[%clk 0:01:15.4]} 29... Rc1+ {[%clk 0:00:46]} 30. Kh2 {[%clk 0:01:15.2]} 30...
Rc2 {[%clk 0:00:44]} 31. Rb7 {[%clk 0:01:10.6]} 31... Rxf2 {[%clk 0:00:40.1]}
32. Rc4 {[%clk 0:01:10.8]} 32... f4 {[%clk 0:00:35.5]} 33. Rcc7 {[%clk
0:01:09.7]} 33... Qg6 {[%clk 0:00:29.1]} 0-1

[Event "*** SCC Grand Prix: Titled Tuesday Blitz"]
[Site "Chess.com"]
[Date "2020.09.29"]
[Round "5"]
[White "Omk124"]
[Black "rakshi2005"]
[Result "1-0"]
[WhiteElo "2432"]
[BlackElo "2255"]
[TimeControl "180+1"]
[EndTime "10:54:00 PDT"]
[Termination "Omk124 won by resignation"]

1. e4 {[%clk 0:03:00.9]} 1... e5 {[%clk 0:02:59.6]} 2. Nf3 {[%clk 0:02:58.1]}
2... Nc6 {[%clk 0:02:59.1]} 3. Bc4 {[%clk 0:02:55.3]} 3... Bc5 {[%clk
0:02:58.1]} 4. c3 {[%clk 0:02:54.9]} 4... Nf6 {[%clk 0:02:57.4]} 5. d3 {[%clk
0:02:55.3]} 5... d6 {[%clk 0:02:56.6]} 6. Nbd2 {[%clk 0:02:54]} 6... h6 {[%clk
0:02:56.1]} 7. Nf1 {[%clk 0:02:53.6]} 7... Be6 {[%clk 0:02:51.7]} 8. Bb5 {[%clk
0:02:47.1]} 8... a6 {[%clk 0:02:50.8]} 9. Ba4 {[%clk 0:02:45.9]} 9... Qe7 {[%clk
0:02:49.8]} 10. Ng3 {[%clk 0:02:41.2]} 10... g6 {[%clk 0:02:45.6]} 11. O-O
{[%clk 0:02:41]} 11... h5 {[%clk 0:02:44.7]} 12. d4 {[%clk 0:02:41.1]} 12... h4
{[%clk 0:02:38.9]} 13. Ne2 {[%clk 0:02:34.4]} 13... b5 {[%clk 0:02:38.3]} 14.
Bc2 {[%clk 0:02:31.8]} 14... Bb6 {[%clk 0:02:27.5]} 15. d5 {[%clk 0:02:31.7]}
15... Bd7 {[%clk 0:02:27.3]} 16. dxc6 {[%clk 0:02:31.1]} 16... Bxc6 {[%clk
0:02:28.2]} 17. Bg5 {[%clk 0:02:29.9]} 17... Bd7 {[%clk 0:02:21.8]} 18. h3
{[%clk 0:02:25.1]} 18... Rh5 {[%clk 0:02:08]} 19. a4 {[%clk 0:02:22.9]} 19...
Qe6 {[%clk 0:01:40.3]} 20. axb5 {[%clk 0:02:20.9]} 20... Bxb5 {[%clk 0:01:32.2]}
21. Ba4 {[%clk 0:02:20.5]} 21... Rb8 {[%clk 0:00:52.5]} 22. Bxf6 {[%clk
0:02:14.4]} 22... Qxf6 {[%clk 0:00:51.3]} 23. Qd5 {[%clk 0:02:14.9]} 23... Bxa4
{[%clk 0:00:42.1]} 24. Rxa4 {[%clk 0:02:13.9]} 24... g5 {[%clk 0:00:42.3]} 25.
Nh2 {[%clk 0:02:13]} 25... Rh8 {[%clk 0:00:38.4]} 26. Rxa6 {[%clk 0:02:10.6]}
26... Qe6 {[%clk 0:00:24.6]} 27. Qc6+ {[%clk 0:02:08.3]} 27... Ke7 {[%clk
0:00:23.9]} 28. Ng4 {[%clk 0:02:06.6]} 28... f5 {[%clk 0:00:23.6]} 29. exf5
{[%clk 0:02:05.9]} 29... Qxf5 {[%clk 0:00:24.5]} 30. Kh1 {[%clk 0:02:02.8]}
30... Rhf8 {[%clk 0:00:24.4]} 31. Ng1 {[%clk 0:01:49.5]} 31... Qd3 {[%clk
0:00:24.2]} 32. Raa1 {[%clk 0:01:44.5]} 32... Rf4 {[%clk 0:00:23.8]} 33. Rae1
{[%clk 0:01:40.3]} 33... Qf5 {[%clk 0:00:23.8]} 34. Qd5 {[%clk 0:01:36]} 34...
Rxg4 {[%clk 0:00:23.3]} 35. hxg4 {[%clk 0:01:36.1]} 35... Qxg4 {[%clk
0:00:24.2]} 36. Nh3 {[%clk 0:01:35.6]} 36... Rf8 {[%clk 0:00:22.6]} 37. Qd2
{[%clk 0:01:30.8]} 37... Rf3 {[%clk 0:00:22.1]} 38. Qxg5+ {[%clk 0:01:30.3]}
38... Qxg5 {[%clk 0:00:20]} 39. Nxg5 {[%clk 0:01:31.2]} 39... Rf5 {[%clk
0:00:20.1]} 40. Nh3 {[%clk 0:01:30.8]} 1-0

[Event "*** SCC Grand Prix: Titled Tuesday Blitz"]
[Site "Chess.com"]
[Date "2020.09.29"]
[Round "5"]
[White "m_ezat"]
[Black "Funo09"]
[Result "1-0"]
[WhiteElo "2633"]
[BlackElo "2831"]
[TimeControl "180+1"]
[EndTime "10:54:01 PDT"]
[Termination "m_ezat won by resignation"]

1. d4 {[%clk 0:03:00.9]} 1... Nf6 {[%clk 0:03:00.3]} 2. c4 {[%clk 0:03:00.3]}
2... Nc6 {[%clk 0:03:00.8]} 3. Nf3 {[%clk 0:02:58.9]} 3... d6 {[%clk 0:03:01.3]}
4. Nc3 {[%clk 0:02:56.7]} 4... Bg4 {[%clk 0:03:00.6]} 5. d5 {[%clk 0:02:55.2]}
5... Nb8 {[%clk 0:02:59.2]} 6. Qb3 {[%clk 0:02:47.2]} 6... Qc8 {[%clk
0:02:48.2]} 7. c5 {[%clk 0:02:45.7]} 7... Na6 {[%clk 0:02:38.4]} 8. cxd6 {[%clk
0:02:41.3]} 8... cxd6 {[%clk 0:02:37.7]} 9. e4 {[%clk 0:02:27.4]} 9... Nc5
{[%clk 0:02:26.3]} 10. Qd1 {[%clk 0:02:09.3]} 10... g6 {[%clk 0:02:21.3]} 11.
Bb5+ {[%clk 0:02:04.5]} 11... Bd7 {[%clk 0:02:20.9]} 12. e5 {[%clk 0:01:59.7]}
12... dxe5 {[%clk 0:02:18]} 13. Nxe5 {[%clk 0:01:56.7]} 13... Bxb5 {[%clk
0:02:17.3]} 14. Nxb5 {[%clk 0:01:56.7]} 14... Bg7 {[%clk 0:02:16.8]} 15. d6
{[%clk 0:01:53]} 15... O-O {[%clk 0:02:10.9]} 16. dxe7 {[%clk 0:01:25.8]} 16...
Re8 {[%clk 0:02:10.5]} 17. O-O {[%clk 0:01:12.2]} 17... Rxe7 {[%clk 0:02:09.9]}
18. Nc4 {[%clk 0:00:53.8]} 18... Qe6 {[%clk 0:01:57.3]} 19. Qc2 {[%clk
0:00:42.3]} 19... Nfe4 {[%clk 0:01:48.6]} 20. Be3 {[%clk 0:00:39]} 20... Rd8
{[%clk 0:01:42.3]} 21. Rad1 {[%clk 0:00:38.3]} 21... Red7 {[%clk 0:01:42.4]} 22.
Rxd7 {[%clk 0:00:34.7]} 22... Rxd7 {[%clk 0:01:43.3]} 23. Nxa7 {[%clk
0:00:33.5]} 23... Qa6 {[%clk 0:01:32.8]} 24. Nc8 {[%clk 0:00:32.7]} 24... Rc7
{[%clk 0:01:19.5]} 25. N8b6 {[%clk 0:00:30.3]} 25... h6 {[%clk 0:01:12.3]} 26.
b4 {[%clk 0:00:25.9]} 1-0